bitfinex-derivatives/quotes_ETHF0:USTF0_20230101
["timestamp","ask_amount","ask_price","bid_price","bid_amount"]
[1672569603424,17.08309109,1196.1,1195.6,3.98758856]
[1672569604691,5.64057933,1196.0,1195.6,3.98758856]
[1672569605636,5.64057933,1196.0,1195.6,5.24009038]
[1672569605849,17.08309109,1196.1,1195.6,5.24009038]
[1672569607111,5.64057933,1196.0,1195.6,5.24009038]
[1672569611839,5.64057933,1196.0,1195.6,7.11878385]
[1672569612259,5.64057933,1196.0,1195.6,5.24009038]
[1672569612782,5.64057933,1196.0,1195.6,7.11878385]
[1672569613729,5.64057933,1196.0,1195.6,5.24009038]
[1672569614570,11.91059842,1196.0,1195.6,5.24009038]
[1672569614787,11.91059842,1196.0,1195.6,7.11878385]
[1672569615300,11.91059842,1196.0,1195.6,5.24009038]
[1672569615609,11.91059842,1196.0,1195.6,7.11878385]
[1672569616255,11.91059842,1196.0,1195.6,5.24009038]
[1672569617092,11.91059842,1196.0,1195.6,7.11878385]
[1672569619312,5.64057933,1196.0,1195.6,7.11878385]
[1672569620045,5.64057933,1196.0,1195.6,5.24009038]
[1672569620255,11.91059842,1196.0,1195.6,5.24009038]
[1672569620881,5.64057933,1195.9,1195.6,5.24009038]
[1672569621939,5.63401061,1195.9,1195.6,5.24009038]
[1672569622672,6.27001909,1196.0,1195.6,5.24009038]
[1672569627402,6.27001909,1196.0,1195.6,7.11878385]
[1672569629185,6.27001909,1196.0,1195.6,5.24009038]
[1672569630973,5.64154454,1195.9,1195.6,5.24009038]
[1672569633082,5.64154454,1195.9,1195.6,7.11878385]
[1672569633389,5.64154454,1195.9,1195.6,5.24009038]
[1672569633601,5.64154454,1195.9,1195.6,7.11878385]
[1672569634031,5.64154454,1195.9,1195.6,5.24009038]
[1672569634344,5.64154454,1195.9,1195.6,7.11878385]
[1672569635390,11.91156363,1196.0,1195.6,7.11878385]
[1672569635601,11.91156363,1196.0,1195.6,5.24009038]
[1672569635912,11.91156363,1196.0,1195.6,7.11878385]
[1672569636122,5.64154454,1195.9,1195.6,7.11878385]
[1672569636652,5.64154454,1195.9,1195.6,5.24009038]
[1672569638749,5.64154454,1195.9,1195.6,7.11878385]
[1672569639914,5.64154454,1195.9,1195.6,5.24009038]
[1672569640550,5.64154454,1195.9,1195.6,7.11878385]
[1672569641064,5.64154454,1196.0,1195.6,7.11878385]
[1672569641795,5.64154454,1196.0,1195.7,1.25250182]
[1672569647796,17.0840563,1196.1,1195.7,1.25250182]
[1672569648736,15.9026563,1196.1,1195.7,1.25250182]
[1672569662936,15.9026563,1196.1,1195.6,15.47778385]
[1672569663142,15.9026563,1196.1,1195.7,1.25250182]
[1672569663553,15.9026563,1196.1,1195.6,13.59909038]
[1672569663977,5.64154454,1196.0,1195.6,13.59909038]
[1672569673125,5.64154454,1196.0,1195.6,5.24009038]
[1672569673334,11.91156363,1196.0,1195.6,5.24009038]
[1672569676592,11.91156363,1196.0,1195.6,3.98758856]
[1672569676801,11.91156363,1196.0,1195.6,5.24009038]
[1672569677011,5.64154454,1195.9,1195.6,5.24009038]
[1672569677540,11.91156363,1196.0,1195.6,5.24009038]
[1672569683738,5.64154454,1196.0,1195.6,5.24009038]
[1672569684473,11.91156363,1196.0,1195.6,5.24009038]
[1672569685418,5.64154454,1196.0,1195.6,5.24009038]
[1672569689836,5.64154454,1196.0,1195.6,5.23398293]
[1672569690996,11.91156363,1196.0,1195.6,5.23398293]
[1672569696768,5.64154454,1195.9,1195.6,3.98148111]
[1672569697399,5.64154454,1195.9,1195.6,5.23398293]
[1672569727041,5.64154454,1195.9,1195.6,3.98148111]
[1672569727246,5.64154454,1195.9,1195.6,5.23398293]
[1672569727457,5.64154454,1195.9,1195.6,3.98148111]
[1672569727769,5.64154454,1195.9,1195.6,5.23398293]
[1672569731564,5.64154454,1195.9,1195.6,1.25250182]
[1672569731873,11.91156363,1195.9,1195.5,5.25250182]
[1672569732083,5.64154454,1195.8,1195.6,3.5]
[1672569733976,5.64154454,1195.9,1195.6,3.5]
[1672569734704,11.91156363,1195.9,1195.6,3.5]
[1672569735550,5.64154454,1195.9,1195.6,3.5]
[1672569737758,5.64154454,1195.9,1195.6,4.75250182]
[1672569738595,5.64154454,1195.9,1195.6,3.5]
[1672569741537,5.64154454,1195.9,1195.6,4.75250182]
[1672569743117,5.64154454,1195.9,1195.6,3.5]
[1672569743431,5.64154454,1195.9,1195.6,4.75250182]
[1672569746373,13.09296363,1196.0,1195.6,4.75250182]
[1672569747001,11.91156363,1196.0,1195.6,4.75250182]
[1672569754042,11.91156363,1196.0,1195.6,6.63119529]
[1672569754248,5.64154454,1196.0,1195.6,6.63119529]
[1672569759512,5.64154454,1196.0,1195.6,4.75250182]
[1672569761303,5.64154454,1196.0,1195.6,6.63119529]
[1672569762981,5.64154454,1196.0,1195.6,4.75250182]
[1672569764138,5.64154454,1196.0,1195.6,6.63119529]
[1672569764876,5.64154454,1196.0,1195.6,4.75250182]
[1672569765612,5.64154454,1196.0,1195.6,6.63119529]
[1672569767292,5.64154454,1196.0,1195.6,14.99019529]
[1672569768966,5.64154454,1196.0,1195.6,13.11150182]
[1672569772239,5.64154454,1196.0,1195.6,14.99019529]
[1672569772557,5.64154454,1196.0,1195.6,13.11150182]
[1672569773815,5.64154454,1196.0,1195.6,14.99019529]
[1672569785589,11.91156363,1196.0,1195.6,14.99019529]
[1672569795148,5.64154454,1195.9,1195.6,14.99019529]
[1672569797879,11.91156363,1196.0,1195.6,14.99019529]
[1672569806710,11.91156363,1196.0,1195.7,1.25250182]
[1672569808708,11.91156363,1196.0,1195.6,14.99019529]
[1672569809649,11.91156363,1196.0,1195.7,1.25250182]
[1672569810288,11.91156363,1196.0,1195.6,14.99019529]
[1672569815010,11.91156363,1196.0,1195.7,1.25250182]
[1672569815325,11.91156363,1196.0,1195.6,14.99019529]
[1672569815746,11.91156363,1196.0,1195.7,1.25250182]
[1672569815948,11.91156363,1196.0,1195.6,14.99019529]
[1672569822688,5.64154454,1195.9,1195.6,14.99019529]
[1672569826257,11.91156363,1196.0,1195.6,14.99019529]
[1672569826888,5.64154454,1195.9,1195.6,14.99019529]
[1672569828986,11.91156363,1196.0,1195.6,14.99019529]
[1672569829197,11.91156363,1196.0,1195.7,1.25250182]
[1672569829514,11.91156363,1196.0,1195.6,14.99019529]
[1672569830028,5.64154454,1195.9,1195.6,14.99019529]
[1672569832559,11.91156363,1196.0,1195.6,14.99019529]
[1672569835813,5.64154454,1195.9,1195.6,14.99019529]
[1672569837708,5.64154454,1195.9,1195.6,13.11150182]
[1672569837917,5.64154454,1195.9,1195.6,14.99019529]
[1672569838125,5.64154454,1195.9,1195.6,13.11150182]
[1672569838864,5.64154454,1195.9,1195.6,14.99019529]
[1672569840124,11.91156363,1196.0,1195.6,14.99019529]
[1672569853057,5.64154454,1195.9,1195.6,14.99019529]
[1672569859505,11.91156363,1196.0,1195.6,14.99019529]
[1672569860346,11.91156363,1196.0,1195.7,1.25250182]
[1672569861206,5.64154454,1196.0,1195.7,1.25250182]
[1672569862029,5.64154454,1196.0,1195.6,14.99019529]
[1672569862233,11.91156363,1196.0,1195.6,14.99019529]
[1672569862956,11.91156363,1196.0,1195.7,1.25250182]
[1672569863171,5.64154454,1196.0,1195.7,1.25250182]
[1672569868544,5.64154454,1196.0,1195.6,14.99019529]
[1672569871382,11.91156363,1196.0,1195.6,14.99019529]
[1672569873363,5.64154454,1196.0,1195.6,14.99019529]
[1672569875044,11.91156363,1196.0,1195.6,14.99019529]
[1672569879978,11.91156363,1196.0,1195.7,1.25250182]
[1672569880182,11.91156363,1196.0,1195.6,14.99019529]
[1672569881333,11.91156363,1196.0,1195.7,1.25250182]
[1672569881647,5.64154454,1196.0,1195.7,1.25250182]
[1672569881869,5.64154454,1196.0,1195.6,14.99019529]
[1672569882070,5.64154454,1196.0,1195.7,1.25250182]
[1672569883544,5.64154454,1196.0,1195.6,14.99019529]
[1672569883757,5.64154454,1196.0,1195.7,1.25250182]
[1672569892168,5.64154454,1196.0,1195.7,11.49019529]
[1672569892399,5.64154454,1196.0,1195.8,4.0]
[1672569892585,15.9026563,1196.1,1195.8,4.0]
[1672569893535,9.63263721,1196.1,1195.8,4.0]
[1672569908349,15.9026563,1196.1,1195.8,4.0]
[1672569912159,9.63263721,1196.1,1195.8,4.0]
[1672569914661,5.64154454,1196.0,1195.8,4.0]
[1672569918760,15.9026563,1196.1,1195.8,4.0]
[1672569925191,9.63263721,1196.1,1195.8,4.0]
[1672569931686,9.63263721,1196.1,1195.8,5.25250182]
[1672569931907,9.63263721,1196.1,1195.8,4.0]
[1672569934917,9.63263721,1196.1,1195.8,5.25250182]
[1672569935152,9.63263721,1196.1,1195.8,4.0]
[1672569957334,9.63263721,1196.1,1195.8,5.25250182]
[1672569960280,9.63263721,1196.1,1195.8,4.0]
[1672569960908,9.63263721,1196.1,1195.8,5.25250182]
[1672569961539,9.63263721,1196.1,1195.8,4.0]
[1672569962170,15.9026563,1196.1,1195.8,4.0]
[1672569962481,15.9026563,1196.1,1195.8,5.25250182]
[1672569963122,9.63263721,1196.1,1195.8,5.25250182]
[1672569963448,9.63263721,1196.1,1195.8,13.61150182]
[1672569964167,3.99109267,1196.1,1195.8,15.49019529]
[1672569964375,3.99109267,1196.1,1195.8,15.48777636]
[1672569968051,3.99109267,1196.1,1195.8,13.60908289]
[1672569977577,9.63263721,1196.1,1195.8,13.60908289]
[1672569979304,3.99109267,1196.1,1195.8,13.60908289]
[1672569987319,3.99109267,1196.1,1195.8,15.48777636]
[1672569988042,3.99109267,1196.1,1195.8,13.60908289]
[1672569988659,3.99109267,1196.1,1195.8,15.48777636]
[1672569990238,3.99109267,1196.1,1195.8,13.60908289]
[1672569990447,3.99109267,1196.1,1195.8,15.48777636]
[1672569999277,3.99109267,1196.1,1195.9,1.25250182]
[1672570000008,3.99109267,1196.1,1195.8,15.48777636]
[1672570004927,3.99109267,1196.1,1195.8,13.60908289]
[1672570008310,3.99109267,1196.1,1195.8,15.48777636]
[1672570016097,3.99109267,1196.1,1195.9,1.25250182]
[1672570017045,3.99109267,1196.1,1195.8,15.48777636]
[1672570018089,3.99109267,1196.1,1195.9,1.25250182]
[1672570018399,3.99109267,1196.1,1195.8,15.48777636]
[1672570019677,3.99109267,1196.1,1195.9,1.25250182]
[1672570020312,3.99109267,1196.1,1195.8,15.48777636]
[1672570020821,3.5,1196.2,1195.8,15.48777636]
[1672570020822,4.0,1196.2,1195.8,15.48777636]
[1672570022929,10.27001909,1196.2,1195.8,15.48777636]
[1672570030600,10.27001909,1196.2,1195.8,13.60908289]
[1672570040380,10.27001909,1196.2,1195.8,13.60395349]
[1672570050781,10.27001909,1196.2,1195.8,15.48264696]
[1672570052780,4.0,1196.2,1195.8,15.48264696]
[1672570058882,4.0,1196.2,1195.9,1.25250182]
[1672570059187,4.0,1196.2,1195.8,15.48264696]
[1672570081576,4.0,1196.2,1195.9,1.25250182]
[1672570106273,4.0,1196.2,1195.8,13.60395349]
[1672570106910,10.27001909,1196.2,1195.8,5.24495349]
[1672570107330,10.27001909,1196.2,1195.8,13.60395349]
[1672570109116,10.27001909,1196.2,1195.8,12.35145167]
[1672570117303,10.27001909,1196.2,1195.8,12.34492156]
[1672570135295,10.26493364,1196.2,1195.8,12.34492156]
[1672570138017,10.26493364,1196.2,1195.8,13.59742338]
[1672570155278,10.26493364,1196.2,1195.8,15.47611685]
[1672570157467,10.26493364,1196.2,1195.8,13.59742338]
[1672570164015,10.26493364,1196.2,1195.8,15.47611685]
[1672570164509,10.26493364,1196.2,1195.8,13.59742338]
[1672570176706,10.26493364,1196.2,1195.8,15.47611685]
[1672570181561,10.26493364,1196.2,1195.8,13.59742338]
[1672570187861,10.26493364,1196.2,1195.8,15.47611685]
[1672570188296,10.26493364,1196.2,1195.8,13.59742338]
[1672570190171,10.26493364,1196.2,1195.8,15.47611685]
[1672570195848,10.26493364,1196.2,1195.8,13.59742338]
[1672570196685,10.26493364,1196.2,1195.8,15.47611685]
[1672570197109,10.26493364,1196.2,1195.8,13.59742338]
[1672570199420,10.26493364,1196.2,1195.8,13.59325208]
[1672570201314,10.26493364,1196.2,1195.8,15.47194555]
[1672570201844,10.26493364,1196.2,1195.8,13.59325208]
[1672570225685,9.76493364,1196.2,1195.8,13.59325208]
[1672570225898,6.27001909,1196.5,1196.1,1.25250182]
[1672570226101,4.0,1196.4,1196.2,3.5]
[1672570226309,6.27001909,1196.5,1196.2,3.5]
[1672570226522,4.0,1196.4,1196.2,4.0]
[1672570226845,6.27001909,1196.5,1196.2,4.0]
[1672570227784,19.92201909,1196.6,1196.2,4.0]
[1672570227996,4.0,1196.5,1196.2,4.0]
[1672570235135,4.0,1196.5,1196.2,12.359]
[1672570260155,10.27001909,1196.5,1196.2,12.359]
[1672570265620,6.27001909,1196.4,1196.2,12.359]
[1672570266147,3.5,1196.3,1196.2,12.359]
[1672570268569,6.27001909,1196.4,1196.2,12.359]
[1672570268897,6.27001909,1196.4,1196.2,12.35167013]
[1672570275931,10.27001909,1196.5,1196.2,12.35167013]
[1672570286966,6.27001909,1196.4,1196.2,12.35167013]
[1672570292650,3.5,1196.3,1196.2,12.35167013]
[1672570292997,6.27001909,1196.4,1196.2,12.35167013]
[1672570295071,3.5,1196.3,1196.2,12.35167013]
[1672570309679,3.5,1196.3,1196.2,8.359]
[1672570328505,3.5,1196.3,1196.1,3.5]
[1672570328711,3.5,1196.3,1196.1,12.359]
[1672570360680,3.5,1196.3,1196.1,12.35605331]
[1672570365023,3.5,1196.3,1196.1,13.60855513]
[1672570365200,3.5,1196.3,1196.1,12.35605331]
[1672570377822,3.5,1196.3,1196.1,13.60855513]
[1672570378326,3.5,1196.3,1196.1,12.35605331]
[1672570379278,3.5,1196.3,1196.1,13.60855513]
[1672570380752,3.5,1196.3,1196.1,12.35605331]
[1672570381168,3.5,1196.3,1196.1,13.60855513]
[1672570386420,3.5,1196.3,1196.1,12.35605331]
[1672570386945,3.5,1196.3,1196.1,13.60855513]
[1672570396510,3.5,1196.3,1196.1,12.35605331]
[1672570397560,3.5,1196.3,1196.1,13.60855513]
[1672570398094,3.5,1196.3,1196.1,12.35605331]
[1672570399770,3.5,1196.3,1196.1,13.60855513]
[1672570400505,3.5,1196.3,1196.1,12.35605331]
[1672570401869,3.5,1196.3,1196.1,13.60855513]
[1672570407230,3.5,1196.3,1196.1,12.35605331]
[1672570407866,3.5,1196.3,1196.1,13.60855513]
[1672570410066,3.5,1196.3,1196.1,12.35605331]
[1672570410279,3.5,1196.3,1196.1,13.60855513]
[1672570410864,3.5,1196.3,1196.1,12.35605331]
[1672570411017,3.5,1196.3,1196.1,13.60855513]
[1672570420267,3.5,1196.3,1196.1,15.4872486]
[1672570421528,3.5,1196.3,1196.1,13.60855513]
[1672570423210,3.5,1196.3,1196.1,15.4872486]
[1672570426797,3.5,1196.3,1196.1,13.60855513]
[1672570427415,3.5,1196.3,1196.1,5.24955513]
[1672570430576,3.5,1196.3,1196.1,7.12148524]
[1672570430785,3.5,1196.3,1196.1,5.24279177]
[1672570431732,3.49657769,1196.3,1196.1,5.24279177]
[1672570437428,3.49657769,1196.3,1196.1,3.99028995]
[1672570452519,3.49657769,1196.3,1196.1,5.24279177]
[1672570456015,3.49657769,1196.3,1196.1,7.12148524]
[1672570456975,3.49657769,1196.3,1196.1,5.24279177]
[1672570458965,3.49657769,1196.3,1196.1,7.12148524]
[1672570460223,3.49657769,1196.3,1196.1,5.24279177]
[1672570467906,3.49657769,1196.3,1196.1,7.12148524]
[1672570468115,3.49657769,1196.3,1196.1,5.24279177]
[1672570468555,3.49657769,1196.3,1196.1,7.12148524]
[1672570468846,3.49657769,1196.3,1196.1,5.24279177]
[1672570469896,3.49657769,1196.3,1196.1,7.12148524]
[1672570471062,3.49657769,1196.3,1196.1,5.24279177]
[1672570471267,3.49657769,1196.3,1196.1,7.12148524]
[1672570472314,3.49657769,1196.3,1196.1,5.24279177]
[1672570474003,3.49657769,1196.3,1196.1,7.12148524]
[1672570474323,3.49657769,1196.3,1196.1,5.24279177]
[1672570475274,3.49657769,1196.3,1196.1,7.12148524]
[1672570475796,3.49657769,1196.3,1196.1,5.24279177]
[1672570476844,3.49657769,1196.3,1196.1,7.12148524]
[1672570484508,3.49657769,1196.3,1196.1,5.24279177]
[1672570487773,3.49657769,1196.3,1196.1,7.12148524]
[1672570488198,3.49657769,1196.3,1196.1,5.24279177]
[1672570489140,3.49657769,1196.3,1196.1,7.12148524]
[1672570493977,3.49657769,1196.3,1196.2,1.25250182]
[1672570501238,3.49657769,1196.3,1196.1,7.12148524]
[1672570503037,3.49657769,1196.3,1196.2,1.25250182]
[1672570504390,4.0,1196.5,1196.2,1.25250182]
[1672570504916,4.0,1196.5,1196.2,1.2460075]
[1672570513651,4.0,1196.5,1196.1,14.22798342]
[1672570514270,10.27282592,1196.5,1196.1,14.22798342]
[1672570515434,10.27282592,1196.5,1196.1,5.86898342]
[1672570515639,10.27282592,1196.5,1196.1,3.99028995]
[1672570551280,6.27282592,1196.4,1196.1,3.99028995]
[1672570551603,3.5,1196.3,1196.1,3.99028995]
[1672570579049,3.5,1196.3,1196.1,3.98468237]
[1672570608801,3.5,1196.3,1196.1,5.86337584]
[1672570610797,5.1814,1196.5,1196.1,5.86337584]
[1672570613562,4.0,1196.5,1196.1,5.86337584]
[1672570614904,4.0,1196.5,1196.1,14.22237584]
[1672570621735,6.27282592,1196.6,1196.1,14.22237584]
[1672570622047,4.0,1196.6,1196.3,3.5]
[1672570625095,4.0,1196.6,1196.3,4.0]
[1672570645899,10.27282592,1196.6,1196.3,4.0]
[1672570652307,4.0,1196.6,1196.3,4.0]
[1672570654220,10.27282592,1196.6,1196.3,4.0]
[1672570656000,4.0,1196.6,1196.3,4.0]
[1672570658726,10.27282592,1196.6,1196.3,4.0]
[1672570679333,10.27282592,1196.6,1196.3,5.25228048]
[1672570680076,4.0,1196.6,1196.3,4.0]
[1672570680590,4.0,1196.6,1196.3,5.25228048]
[1672570682273,4.0,1196.6,1196.3,4.0]
[1672570682487,4.0,1196.6,1196.3,5.25228048]
[1672570687527,4.0,1196.6,1196.3,4.0]
[1672570704872,4.0,1196.6,1196.3,5.25228048]
[1672570705082,4.0,1196.6,1196.3,7.12527271]
[1672570709827,4.0,1196.6,1196.3,5.24657924]
[1672570710021,4.0,1196.6,1196.3,7.12527271]
[1672570710233,4.0,1196.6,1196.3,5.24657924]
[1672570714650,4.0,1196.6,1196.3,13.60557924]
[1672570717460,4.0,1196.6,1196.3,5.24657924]
[1672570717583,4.0,1196.6,1196.3,3.99429876]
[1672570720520,4.0,1196.6,1196.3,7.12527271]
[1672570725571,4.0,1196.6,1196.3,15.48427271]
[1672570731458,4.0,1196.6,1196.4,1.25228048]
[1672570731663,4.0,1196.6,1196.3,14.23199223]
[1672570731664,4.0,1196.6,1196.3,15.48427271]
[1672570731864,4.0,1196.6,1196.4,1.25228048]
[1672570736189,4.0,1196.6,1196.3,15.48427271]
[1672570738245,4.0,1196.6,1196.4,1.25228048]
[1672570738512,4.0,1196.6,1196.3,15.48427271]
[1672570739241,4.0,1196.6,1196.4,1.25228048]
[1672570739658,4.0,1196.6,1196.5,3.5]
[1672570744284,3.99733082,1196.6,1196.5,3.5]
[1672570750791,3.5,1196.7,1196.5,3.5]
[1672570751011,4.0,1196.7,1196.5,3.5]
[1672570751464,6.27282592,1196.9,1196.5,13.11128048]
[1672570751650,1.111,1197.0,1196.8,8.359]
[1672570752059,1.111,1197.0,1196.8,8.67508648]
[1672570752266,1.111,1197.0,1196.9,12.359]
[1672570753420,1.111,1197.0,1196.9,4.0]
[1672570759741,1.111,1197.0,1196.9,12.359]
[1672570760276,0.0001,1197.0,1196.9,15.359]
[1672570760467,4.0,1197.5,1196.9,12.359]
[1672570785380,4.0,1197.5,1196.9,13.61128048]
[1672570787702,4.0,1197.5,1196.9,15.48997395]
[1672570789487,5.1814,1197.5,1196.9,15.48997395]
[1672570789801,5.1814,1197.5,1197.0,1.25228048]
[1672570790014,5.1814,1197.5,1197.1,11.859]
[1672570790636,5.1814,1197.5,1197.2,4.0]
[1672570792218,5.1814,1197.5,1197.1,3.5]
[1672570792422,5.1814,1197.5,1197.1,4.0]
[1672570798100,11.45422592,1197.5,1197.1,4.0]
[1672570800413,11.45422592,1197.5,1197.1,13.61128048]
[1672570800627,10.27282592,1197.5,1197.1,13.61128048]
[1672570800840,10.27282592,1197.5,1197.1,15.48997395]
[1672570801778,4.0,1197.5,1197.1,15.48997395]
[1672570804099,4.0,1197.5,1197.1,13.61128048]
[1672570805355,10.27282592,1197.5,1197.1,13.61128048]
[1672570816508,10.27282592,1197.5,1197.1,15.48997395]
[1672570817240,4.0,1197.5,1197.1,15.48997395]
[1672570819029,4.0,1197.5,1197.1,13.61128048]
[1672570819972,10.27282592,1197.5,1197.1,13.61128048]
[1672570822712,10.27282592,1197.5,1197.1,12.359]
[1672570823127,10.27282592,1197.5,1197.1,13.61128048]
[1672570823337,10.27282592,1197.5,1197.1,12.359]
[1672570823766,10.27282592,1197.5,1197.1,13.61128048]
[1672570824701,10.27282592,1197.5,1197.1,5.25228048]
[1672570825022,10.27282592,1197.5,1197.1,4.0]
[1672570828696,10.27282592,1197.5,1197.1,5.25228048]
[1672570829124,10.27282592,1197.5,1197.1,7.13097395]
[1672570829535,10.27282592,1197.5,1197.1,5.25228048]
[1672570834593,4.0,1197.5,1197.1,5.25228048]
[1672570836370,10.27282592,1197.5,1197.1,5.25228048]
[1672570836583,10.27282592,1197.5,1197.2,1.25228048]
[1672570837212,4.0,1197.5,1197.2,1.25228048]
[1672570838272,4.0,1197.5,1197.1,7.13097395]
[1672570838479,4.0,1197.5,1197.2,1.25228048]
[1672570839107,4.0,1197.5,1197.1,5.87869347]
[1672570839108,4.0,1197.5,1197.1,7.13097395]
[1672570845412,4.0,1197.5,1197.2,1.25228048]
[1672570847092,4.0,1197.5,1197.1,15.48997395]
[1672570848356,4.0,1197.5,1197.1,13.61128048]
[1672570848983,4.0,1197.5,1197.1,15.48997395]
[1672570849512,4.0,1197.5,1197.1,13.61128048]
[1672570853816,4.0,1197.5,1197.1,15.48997395]
[1672570854239,4.0,1197.5,1197.1,13.61128048]
[1672570856871,4.0,1197.5,1197.1,15.48997395]
[1672570857184,4.0,1197.5,1197.1,13.61128048]
[1672570857395,4.0,1197.5,1197.1,15.48997395]
[1672570859285,4.0,1197.5,1197.1,13.61128048]
[1672570860332,4.0,1197.5,1197.1,15.48997395]
[1672570861390,4.0,1197.5,1197.1,5.25228048]
[1672570867175,4.0,1197.5,1197.1,7.13097395]
[1672570876209,4.0,1197.5,1197.1,5.25228048]
[1672570876737,10.27282592,1197.5,1197.1,5.25228048]
[1672570879153,10.27282592,1197.5,1197.1,7.13097395]
[1672570879367,4.0,1197.5,1197.2,1.25228048]
[1672570880414,9.77282592,1197.6,1197.2,1.25228048]
[1672570880415,24.23922592,1197.7,1197.3,1.24455873]
[1672570880729,19.92482592,1197.7,1197.3,4.3836181]
[1672570880935,19.92482592,1197.7,1197.3,1.87869347]
[1672570881357,4.0,1197.6,1197.3,1.87869347]
[1672570881570,4.0,1197.6,1197.4,4.0]
[1672570884403,4.0,1197.6,1197.3,3.5]
[1672570884618,4.0,1197.6,1197.3,4.0]
[1672570900595,4.0,1197.6,1197.3,12.359]
[1672570901865,4.0,1197.6,1197.3,4.0]
[1672570914166,1.1814,1197.5,1197.0,10.99356974]
[1672570914375,7.45422592,1197.5,1197.0,10.99356974]
[1672570914577,3.5,1197.4,1196.9,1.87869347]
[1672570914787,3.5,1197.4,1197.0,4.0]
[1672570916265,3.5,1197.4,1196.8,21.29846159]
[1672570916484,4.6814,1197.4,1196.8,21.29846159]
[1672570916686,4.6814,1197.4,1196.9,4.0]
[1672570917104,10.95422592,1197.4,1196.9,4.0]
[1672570919008,4.6814,1197.4,1196.9,4.0]
[1672570919974,10.95422592,1197.4,1196.9,4.0]
[1672570920895,4.6814,1197.4,1196.9,4.0]
[1672570948353,10.95422592,1197.4,1196.9,4.0]
[1672570949302,4.6814,1197.4,1196.9,4.0]
[1672570949512,4.6814,1197.4,1196.9,3.9923042]
[1672570950245,10.95422592,1197.4,1196.9,3.9923042]
[1672570954664,6.27282592,1197.3,1196.9,3.9923042]
[1672570954872,4.0,1197.2,1196.9,3.9923042]
[1672570963915,10.27282592,1197.2,1196.9,3.9923042]
[1672570965598,4.0,1197.2,1196.9,3.9923042]
[1672570990093,4.0,1197.2,1196.9,5.87099767]
[1672570997558,4.0,1197.2,1196.9,3.9923042]
[1672571000393,4.0,1197.2,1196.9,5.24365896]
[1672571013854,4.0,1197.2,1196.9,7.12235243]
[1672571014059,4.0,1197.2,1196.9,5.24365896]
[1672571016591,4.0,1197.2,1196.9,7.12235243]
[1672571027317,4.0,1197.2,1197.0,1.25135476]
[1672571035202,4.0,1197.2,1197.0,3.13004823]
[1672571035413,4.0,1197.2,1197.1,3.5]
[1672571051088,4.0,1197.2,1197.0,1.25135476]
[1672571053599,4.0,1197.2,1196.9,15.48135243]
[1672571055818,4.0,1197.2,1197.0,1.25135476]
[1672571056029,4.0,1197.2,1196.9,15.48135243]
[1672571060653,4.0,1197.2,1197.0,1.25135476]
[1672571062338,4.0,1197.2,1196.9,15.48135243]
[1672571062653,4.0,1197.2,1196.9,7.12235243]
[1672571064970,4.0,1197.2,1196.9,5.24365896]
[1672571065279,4.0,1197.2,1196.9,7.12235243]
[1672571066332,4.0,1197.2,1196.9,5.24365896]
[1672571066651,4.0,1197.2,1196.9,7.12235243]
[1672571069695,4.0,1197.2,1196.9,5.24365896]
[1672571088201,4.0,1197.2,1196.9,7.12235243]
[1672571091557,4.0,1197.2,1196.9,5.24365896]
[1672571092404,4.0,1197.2,1196.9,7.12235243]
[1672571099346,4.0,1197.2,1196.9,5.24365896]
[1672571099553,4.0,1197.2,1196.9,5.24106524]
[1672571100397,4.0,1197.2,1196.9,7.11975871]
[1672571101026,4.0,1197.2,1196.9,5.24106524]
[1672571102288,4.0,1197.2,1196.9,7.11975871]
[1672571121530,4.0,1197.2,1196.9,5.24106524]
[1672571136033,4.0,1197.2,1196.9,7.11975871]
[1672571136454,4.0,1197.2,1196.9,5.24106524]
[1672571136670,4.0,1197.2,1196.9,7.11975871]
[1672571137299,4.0,1197.2,1196.9,5.24106524]
[1672571139188,4.0,1197.2,1196.9,7.11975871]
[1672571139611,4.0,1197.2,1196.9,5.24106524]
[1672571140978,4.0,1197.2,1196.9,7.11975871]
[1672571141191,4.0,1197.2,1196.9,5.24106524]
[1672571141501,4.0,1197.2,1196.9,7.11975871]
[1672571150863,4.0,1197.2,1196.9,5.24106524]
[1672571151172,4.0,1197.2,1196.9,7.11975871]
[1672571156532,3.99510926,1197.2,1196.9,7.11975871]
[1672571157901,3.99510926,1197.2,1196.9,5.24106524]
[1672571170409,3.99510926,1197.2,1196.9,7.11975871]
[1672571170618,3.99510926,1197.2,1197.0,3.13004823]
[1672571170934,9.77282592,1197.4,1197.1,3.13004823]
[1672571171137,3.5,1197.4,1197.2,4.75135476]
[1672571171347,4.0,1197.4,1197.2,3.5]
[1672571180404,4.0,1197.4,1197.1,4.0]
[1672571207213,4.0,1197.4,1197.1,5.25135476]
[1672571209330,4.0,1197.4,1197.1,7.13004823]
[1672571215531,4.0,1197.4,1197.2,1.25135476]
[1672571227513,4.0,1197.4,1197.2,1.24397331]
[1672571227722,4.0,1197.4,1197.1,5.87869347]
[1672571229502,4.0,1197.4,1197.1,4.0]
[1672571229712,4.0,1197.4,1197.1,5.87869347]
[1672571234976,4.0,1197.4,1197.1,8.3836181]
[1672571235912,4.0,1197.4,1197.1,5.87869347]
[1672571237812,4.0,1197.4,1197.1,14.23769347]
[1672571240337,4.0,1197.4,1197.1,16.7426181]
[1672571240963,4.0,1197.4,1197.1,14.23769347]
[1672571241798,4.0,1197.4,1197.1,16.7426181]
[1672571242013,4.0,1197.4,1197.1,14.23769347]
[1672571243488,3.99581055,1197.4,1197.1,14.23769347]
[1672571243904,3.99581055,1197.4,1197.1,5.87869347]
[1672571251262,3.99581055,1197.4,1197.1,4.0]
[1672571265249,3.99581055,1197.4,1197.0,3.5]
[1672571265454,3.99581055,1197.4,1197.0,4.0]
[1672571283956,10.26863647,1197.4,1197.0,4.0]
[1672571308257,10.26863647,1197.4,1197.0,5.87869347]
[1672571308888,10.26863647,1197.4,1197.0,4.0]
[1672571312679,1.1814,1197.3,1196.9,1.87869347]
[1672571312882,1.1814,1197.3,1196.7,4.3804002]
[1672571313094,1.1814,1197.3,1196.7,1.87869347]
[1672571313516,9.77282592,1197.2,1196.8,4.0]
[1672571316346,3.5,1197.2,1196.8,4.0]